[Event "*** Titled Tuesday Blitz"]
[Site "Chess.com"]
[Date "2020.02.04"]
[Round "7"]
[White "Blitzstream"]
[Black "sergiochess83"]
[Result "0-1"]
[WhiteElo "2734"]
[BlackElo "2957"]
[TimeControl "180+2"]
[EndTime "14:30:50 PST"]
[Termination "sergiochess83 won by resignation"]

1. d4 {[%clk 0:03:01.9]} 1... Nf6 {[%clk 0:03:00.6]} 2. Bg5 {[%clk 0:03:02.6]}
2... d5 {[%clk 0:02:56.8]} 3. e3 {[%clk 0:03:02.1]} 3... c5 {[%clk 0:02:51.4]}
4. c3 {[%clk 0:03:03.2]} 4... Nc6 {[%clk 0:02:46.2]} 5. Nd2 {[%clk 0:03:03.6]}
5... cxd4 {[%clk 0:02:28.7]} 6. exd4 {[%clk 0:03:03.8]} 6... Bf5 {[%clk
0:02:29.7]} 7. Ngf3 {[%clk 0:02:55.5]} 7... e6 {[%clk 0:02:25.3]} 8. Ne5 {[%clk
0:02:50.3]} 8... Qb6 {[%clk 0:02:21.7]} 9. Qb3 {[%clk 0:02:33.4]} 9... Bd6
{[%clk 0:01:50.7]} 10. Qxb6 {[%clk 0:02:28.6]} 10... axb6 {[%clk 0:01:51.5]} 11.
Bb5 {[%clk 0:02:29.9]} 11... Bxe5 {[%clk 0:01:48.5]} 12. dxe5 {[%clk 0:02:30]}
12... Nd7 {[%clk 0:01:49.5]} 13. f4 {[%clk 0:02:25.5]} 13... Nc5 {[%clk
0:01:50.5]} 14. Ke2 {[%clk 0:02:21.9]} 14... O-O {[%clk 0:01:46]} 15. Bh4 {[%clk
0:02:13.4]} 15... Na7 {[%clk 0:01:32.4]} 16. a4 {[%clk 0:01:49.7]} 16... Nxb5
{[%clk 0:01:30.9]} 17. axb5 {[%clk 0:01:51.6]} 17... Bd3+ {[%clk 0:01:21.5]} 18.
Ke3 {[%clk 0:01:52.8]} 18... Bxb5 {[%clk 0:01:23.4]} 19. b4 {[%clk 0:01:31.4]}
19... Na4 {[%clk 0:01:19.4]} 20. Ra3 {[%clk 0:01:25.8]} 20... Nb2 {[%clk
0:00:56.7]} 21. Rha1 {[%clk 0:01:20.2]} 21... Rac8 {[%clk 0:00:54.3]} 22. Rb1
{[%clk 0:01:10.7]} 22... Nc4+ {[%clk 0:00:53.1]} 23. Nxc4 {[%clk 0:01:11.6]}
23... Rxc4 {[%clk 0:00:54.7]} 24. Be1 {[%clk 0:00:49.7]} 24... f6 {[%clk
0:00:52.3]} 25. exf6 {[%clk 0:00:47.6]} 25... Rxf6 {[%clk 0:00:53.3]} 26. g3
{[%clk 0:00:48.8]} 26... e5 {[%clk 0:00:49.7]} 27. fxe5 {[%clk 0:00:40.2]} 27...
Re4+ {[%clk 0:00:50.3]} 28. Kd2 {[%clk 0:00:41.7]} 28... Re2+ {[%clk 0:00:50.6]}
29. Kd1 {[%clk 0:00:43.1]} 29... Rf1 {[%clk 0:00:51.4]} 0-1

[Event "*** Titled Tuesday Blitz"]
[Site "Chess.com"]
[Date "2020.02.04"]
[Round "7"]
[White "MateusViageiro"]
[Black "Everyfishknows"]
[Result "0-1"]
[WhiteElo "2180"]
[BlackElo "2318"]
[TimeControl "180+2"]
[EndTime "14:30:50 PST"]
[Termination "Everyfishknows won by resignation"]

1. e4 {[%clk 0:03:01.9]} 1... e5 {[%clk 0:03:00]} 2. Nf3 {[%clk 0:03:02.6]} 2...
Nc6 {[%clk 0:02:55.7]} 3. Bb5 {[%clk 0:02:57.5]} 3... a6 {[%clk 0:02:54.2]} 4.
Ba4 {[%clk 0:02:57.7]} 4... Nf6 {[%clk 0:02:51.6]} 5. Bxc6 {[%clk 0:02:56.9]}
5... dxc6 {[%clk 0:02:51]} 6. d3 {[%clk 0:02:58.8]} 6... Bd6 {[%clk 0:02:46.6]}
7. Nbd2 {[%clk 0:03:00.5]} 7... O-O {[%clk 0:02:24.2]} 8. Nc4 {[%clk 0:03:02.4]}
8... Nd7 {[%clk 0:02:12.7]} 9. Ncxe5 {[%clk 0:03:04.3]} 9... Nxe5 {[%clk
0:02:02.6]} 10. Nxe5 {[%clk 0:02:26.1]} 10... Bxe5 {[%clk 0:02:02.3]} 11. f4
{[%clk 0:02:27.9]} 11... Bd4 {[%clk 0:01:55.5]} 12. c3 {[%clk 0:02:27.1]} 12...
Bb6 {[%clk 0:01:46.2]} 13. Qf3 {[%clk 0:02:27.9]} 13... Qh4+ {[%clk 0:01:38.1]}
14. g3 {[%clk 0:02:27.9]} 14... Qh3 {[%clk 0:01:34.3]} 15. f5 {[%clk 0:02:28.9]}
15... Re8 {[%clk 0:01:22.8]} 16. Rf1 {[%clk 0:02:19.7]} 16... Qxh2 {[%clk
0:01:14.7]} 17. d4 {[%clk 0:02:13.8]} 17... Qc2 {[%clk 0:00:44.6]} 18. e5 {[%clk
0:02:10.6]} 18... c5 {[%clk 0:00:21.6]} 19. Rf2 {[%clk 0:02:08.8]} 19... Qa4
{[%clk 0:00:22.8]} 20. f6 {[%clk 0:01:51.4]} 20... cxd4 {[%clk 0:00:22.3]} 21.
fxg7 {[%clk 0:01:49.1]} 21... Rxe5+ {[%clk 0:00:22.9]} 22. Kf1 {[%clk
0:01:46.5]} 22... Rf5 {[%clk 0:00:22.3]} 23. Qe4 {[%clk 0:01:40.3]} 23... Qd1+
{[%clk 0:00:19.5]} 24. Kg2 {[%clk 0:01:33.6]} 24... Rxf2+ {[%clk 0:00:20]} 25.
Kxf2 {[%clk 0:01:34]} 25... dxc3+ {[%clk 0:00:20.7]} 26. Be3 {[%clk 0:01:34.8]}
26... Qd2+ {[%clk 0:00:18.7]} 27. Kf3 {[%clk 0:01:33.3]} 27... Qxe3+ {[%clk
0:00:19.4]} 28. Qxe3 {[%clk 0:01:34]} 28... Bxe3 {[%clk 0:00:21.3]} 29. Kxe3
{[%clk 0:01:34.9]} 29... c2 {[%clk 0:00:19.7]} 30. Rc1 {[%clk 0:01:35.3]} 30...
Bf5 {[%clk 0:00:20.8]} 31. g4 {[%clk 0:01:35.4]} 31... Bg6 {[%clk 0:00:21.8]}
32. Kf4 {[%clk 0:01:33.4]} 32... Rd8 {[%clk 0:00:22.8]} 0-1

[Event "*** Titled Tuesday Blitz"]
[Site "Chess.com"]
[Date "2020.02.04"]
[Round "7"]
[White "francyIM"]
[Black "IakovUlivar"]
[Result "0-1"]
[WhiteElo "2580"]
[BlackElo "2461"]
[TimeControl "180+2"]
[EndTime "14:31:00 PST"]
[Termination "IakovUlivar won by resignation"]

1. d4 {[%clk 0:03:01.9]} 1... d5 {[%clk 0:02:59.6]} 2. c4 {[%clk 0:03:02.6]}
2... e6 {[%clk 0:03:00.9]} 3. Nc3 {[%clk 0:03:02.8]} 3... a6 {[%clk 0:03:02.2]}
4. cxd5 {[%clk 0:03:00.3]} 4... exd5 {[%clk 0:03:04.1]} 5. Nf3 {[%clk
0:03:01.7]} 5... Nf6 {[%clk 0:03:04.4]} 6. Bg5 {[%clk 0:03:02.5]} 6... Be6
{[%clk 0:03:05.3]} 7. Qb3 {[%clk 0:03:03.8]} 7... b5 {[%clk 0:02:52.8]} 8. a4
{[%clk 0:02:56.7]} 8... b4 {[%clk 0:02:52.1]} 9. Bxf6 {[%clk 0:02:57.8]} 9...
Qxf6 {[%clk 0:02:41.6]} 10. Nxd5 {[%clk 0:02:58.2]} 10... Qd8 {[%clk 0:02:36.6]}
11. e4 {[%clk 0:02:57.8]} 11... c6 {[%clk 0:02:32.5]} 12. Qe3 {[%clk 0:02:58.3]}
12... cxd5 {[%clk 0:02:30.6]} 13. exd5 {[%clk 0:03:00.2]} 13... Qxd5 {[%clk
0:02:31.1]} 14. Rc1 {[%clk 0:03:00.9]} 14... Be7 {[%clk 0:02:17.4]} 15. Bc4
{[%clk 0:02:55.8]} 15... Qd6 {[%clk 0:02:08.3]} 16. d5 {[%clk 0:02:43.4]} 16...
Bc8 {[%clk 0:01:54]} 17. O-O {[%clk 0:02:41.3]} 17... O-O {[%clk 0:01:54.3]} 18.
b3 {[%clk 0:02:37.4]} 18... Bf6 {[%clk 0:01:50.6]} 19. Nd2 {[%clk 0:02:37]}
19... Bf5 {[%clk 0:01:50.2]} 20. Ne4 {[%clk 0:02:32.1]} 20... Bxe4 {[%clk
0:01:50.1]} 21. Qxe4 {[%clk 0:02:34]} 21... Nd7 {[%clk 0:01:51.1]} 22. Rfe1
{[%clk 0:02:35.2]} 22... Nc5 {[%clk 0:01:46.3]} 23. Qe3 {[%clk 0:02:32.6]} 23...
Bc3 {[%clk 0:01:44.2]} 24. Re2 {[%clk 0:02:33.2]} 24... g6 {[%clk 0:01:42.8]}
25. h4 {[%clk 0:02:32.4]} 25... Rae8 {[%clk 0:01:38.7]} 26. Qxe8 {[%clk
0:02:31.8]} 26... Rxe8 {[%clk 0:01:40.6]} 27. Rxe8+ {[%clk 0:02:32.8]} 27... Kg7
{[%clk 0:01:42]} 28. Rc2 {[%clk 0:02:33.5]} 28... Nd7 {[%clk 0:01:30]} 29. Rc8
{[%clk 0:02:26.7]} 29... Ne5 {[%clk 0:01:24.8]} 30. Re2 {[%clk 0:02:20.3]} 30...
Nxc4 {[%clk 0:01:23.2]} 31. Rxc4 {[%clk 0:02:21.2]} 31... Qxd5 {[%clk
0:01:23.9]} 32. Re7 {[%clk 0:02:17.8]} 32... Qd1+ {[%clk 0:01:23.4]} 33. Kh2
{[%clk 0:02:18.4]} 33... Qxb3 {[%clk 0:01:24.6]} 34. Rcc7 {[%clk 0:02:19.7]}
34... Bf6 {[%clk 0:01:13.1]} 35. Re4 {[%clk 0:02:17.2]} 35... Qxa4 {[%clk
0:01:10.2]} 36. g3 {[%clk 0:01:50.9]} 36... h5 {[%clk 0:01:08.5]} 37. Rb7 {[%clk
0:01:50.5]} 37... a5 {[%clk 0:01:06.9]} 38. Rc4 {[%clk 0:01:50.5]} 38... Qa2
{[%clk 0:01:04.5]} 39. Rf4 {[%clk 0:01:49.1]} 39... b3 {[%clk 0:01:03.3]} 40.
Rb6 {[%clk 0:01:49.2]} 40... b2 {[%clk 0:01:00.4]} 0-1

[Event "*** Titled Tuesday Blitz"]
[Site "Chess.com"]
[Date "2020.02.04"]
[Round "7"]
[White "Alopekos"]
[Black "VALPARAISO37"]
[Result "0-1"]
[WhiteElo "2465"]
[BlackElo "2277"]
[TimeControl "180+2"]
[EndTime "14:31:06 PST"]
[Termination "VALPARAISO37 won on time"]

1. e4 {[%clk 0:03:01.9]} 1... e5 {[%clk 0:03:00.5]} 2. Nf3 {[%clk 0:03:01.2]}
2... Nc6 {[%clk 0:03:00.4]} 3. Bb5 {[%clk 0:03:02.2]} 3... g6 {[%clk 0:02:59.6]}
4. d4 {[%clk 0:03:00.7]} 4... exd4 {[%clk 0:02:59.7]} 5. Bg5 {[%clk 0:03:01.3]}
5... Be7 {[%clk 0:02:59.8]} 6. Bxe7 {[%clk 0:03:01.2]} 6... Ngxe7 {[%clk
0:03:00.7]} 7. Nxd4 {[%clk 0:02:58.3]} 7... d5 {[%clk 0:03:01.1]} 8. exd5 {[%clk
0:02:39.8]} 8... Qxd5 {[%clk 0:02:59.6]} 9. O-O {[%clk 0:02:40.7]} 9... O-O
{[%clk 0:02:57]} 10. Nxc6 {[%clk 0:02:34]} 10... bxc6 {[%clk 0:02:57.4]} 11. Bd3
{[%clk 0:02:09.3]} 11... Rb8 {[%clk 0:02:49.6]} 12. Nc3 {[%clk 0:01:49.9]} 12...
Qd4 {[%clk 0:02:50]} 13. Rb1 {[%clk 0:01:35.7]} 13... Nd5 {[%clk 0:02:47.1]} 14.
Qf3 {[%clk 0:01:21.8]} 14... Bg4 {[%clk 0:02:33.7]} 15. Qg3 {[%clk 0:01:22.5]}
15... Nxc3 {[%clk 0:02:30.5]} 16. bxc3 {[%clk 0:01:21.6]} 16... Qd7 {[%clk
0:02:30.7]} 17. Rb4 {[%clk 0:01:18.3]} 17... Be6 {[%clk 0:02:28.2]} 18. Rfb1
{[%clk 0:01:03.2]} 18... Rb6 {[%clk 0:02:27]} 19. a4 {[%clk 0:01:01.8]} 19... c5
{[%clk 0:02:23.2]} 20. Rb5 {[%clk 0:00:52.1]} 20... c4 {[%clk 0:02:15.6]} 21.
Bf1 {[%clk 0:00:52.7]} 21... Re8 {[%clk 0:02:03.4]} 22. h3 {[%clk 0:00:34.4]}
22... Bd5 {[%clk 0:01:55.2]} 23. Rd1 {[%clk 0:00:06.4]} 23... Rxb5 {[%clk
0:01:52.5]} 24. axb5 {[%clk 0:00:08.3]} 24... Qxb5 {[%clk 0:01:52.3]} 25. Qxc7
{[%clk 0:00:07.7]} 25... a5 {[%clk 0:01:51.9]} 26. Qd6 {[%clk 0:00:02.2]} 26...
Be6 {[%clk 0:01:43.2]} 27. Ra1 {[%clk 0:00:03.1]} 27... a4 {[%clk 0:01:42.7]}
28. Be2 {[%clk 0:00:02.7]} 28... Qb2 {[%clk 0:01:37.1]} 29. Rxa4 {[%clk
0:00:02.4]} 29... Qxc3 {[%clk 0:01:37.2]} 0-1

[Event "*** Titled Tuesday Blitz"]
[Site "Chess.com"]
[Date "2020.02.04"]
[Round "7"]
[White "lelya96"]
[Black "GianmarcoVaR"]
[Result "0-1"]
[WhiteElo "2464"]
[BlackElo "2618"]
[TimeControl "180+2"]
[EndTime "14:31:16 PST"]
[Termination "GianmarcoVaR won by checkmate"]

1. e4 {[%clk 0:03:00.1]} 1... c5 {[%clk 0:03:00.6]} 2. Nf3 {[%clk 0:03:01.1]}
2... d6 {[%clk 0:03:01.8]} 3. d4 {[%clk 0:03:00.7]} 3... cxd4 {[%clk 0:03:03.7]}
4. Nxd4 {[%clk 0:03:02.3]} 4... Nf6 {[%clk 0:03:04.9]} 5. Nc3 {[%clk 0:03:03.9]}
5... a6 {[%clk 0:03:06.1]} 6. Be2 {[%clk 0:03:04.2]} 6... e5 {[%clk 0:03:06.9]}
7. Nb3 {[%clk 0:03:05.1]} 7... Be7 {[%clk 0:03:07.8]} 8. Qd3 {[%clk 0:03:05.9]}
8... O-O {[%clk 0:03:02.8]} 9. Bg5 {[%clk 0:03:05.8]} 9... Be6 {[%clk
0:02:54.2]} 10. Rd1 {[%clk 0:03:05.4]} 10... Nbd7 {[%clk 0:02:54.7]} 11. O-O
{[%clk 0:02:53.2]} 11... Rc8 {[%clk 0:02:55.4]} 12. f4 {[%clk 0:02:46.7]} 12...
h6 {[%clk 0:02:36.3]} 13. Bxf6 {[%clk 0:02:41]} 13... Bxf6 {[%clk 0:02:35.5]}
14. f5 {[%clk 0:02:40.2]} 14... Bc4 {[%clk 0:01:29.3]} 15. Qxd6 {[%clk
0:01:49.7]} 15... Bxe2 {[%clk 0:01:27]} 16. Nxe2 {[%clk 0:01:50.4]} 16... Rxc2
{[%clk 0:01:28.5]} 17. Nc3 {[%clk 0:01:49.5]} 17... Nb6 {[%clk 0:01:24.7]} 18.
Qc5 {[%clk 0:01:19.6]} 18... Nd7 {[%clk 0:01:10]} 19. Qd6 {[%clk 0:01:01.9]}
19... Bg5 {[%clk 0:00:37.9]} 20. Qxd7 {[%clk 0:00:41.8]} 20... Be3+ {[%clk
0:00:38.3]} 21. Kh1 {[%clk 0:00:42.6]} 21... Qg5 {[%clk 0:00:39.8]} 22. Rg1
{[%clk 0:00:21.4]} 22... Qh4 {[%clk 0:00:28.6]} 23. f6 {[%clk 0:00:20.1]} 23...
Bf4 {[%clk 0:00:28.6]} 24. Qh3 {[%clk 0:00:19.5]} 24... Qxh3 {[%clk 0:00:29.6]}
25. gxh3 {[%clk 0:00:20.7]} 25... Rxh2# {[%clk 0:00:30.9]} 0-1

[Event "*** Titled Tuesday Blitz"]
[Site "Chess.com"]
[Date "2020.02.04"]
[Round "7"]
[White "Zkid"]
[Black "Supernotar"]
[Result "0-1"]
[WhiteElo "2825"]
[BlackElo "2600"]
[TimeControl "180+2"]
[EndTime "14:31:30 PST"]
[Termination "Supernotar won by resignation"]

1. e4 {[%clk 0:03:00.5]} 1... c6 {[%clk 0:03:00.5]} 2. d4 {[%clk 0:03:01.4]}
2... d5 {[%clk 0:03:00.9]} 3. exd5 {[%clk 0:03:03.3]} 3... cxd5 {[%clk
0:03:01.5]} 4. Bd3 {[%clk 0:03:04.9]} 4... Nc6 {[%clk 0:03:02.1]} 5. c3 {[%clk
0:03:06.4]} 5... Qc7 {[%clk 0:03:03]} 6. Ne2 {[%clk 0:03:07.3]} 6... e6 {[%clk
0:03:00.5]} 7. Bf4 {[%clk 0:03:00]} 7... Bd6 {[%clk 0:03:01.5]} 8. Bxd6 {[%clk
0:03:00.4]} 8... Qxd6 {[%clk 0:03:02.9]} 9. O-O {[%clk 0:03:01.6]} 9... Nge7
{[%clk 0:03:03.7]} 10. f4 {[%clk 0:03:02.6]} 10... O-O {[%clk 0:02:54]} 11. Nd2
{[%clk 0:03:02.3]} 11... Bd7 {[%clk 0:02:52.4]} 12. Nf3 {[%clk 0:03:01.3]} 12...
f6 {[%clk 0:02:50.6]} 13. Bc2 {[%clk 0:02:57.2]} 13... Rae8 {[%clk 0:02:47.5]}
14. Qd3 {[%clk 0:02:57.3]} 14... g6 {[%clk 0:02:48.2]} 15. h4 {[%clk 0:02:58.4]}
15... e5 {[%clk 0:02:34.1]} 16. fxe5 {[%clk 0:02:56.4]} 16... fxe5 {[%clk
0:02:34.9]} 17. dxe5 {[%clk 0:02:52.1]} 17... Nxe5 {[%clk 0:02:33.7]} 18. Nxe5
{[%clk 0:02:52.1]} 18... Qxe5 {[%clk 0:02:34.8]} 19. Nd4 {[%clk 0:02:53.2]}
19... Nf5 {[%clk 0:02:30.8]} 20. Rad1 {[%clk 0:02:41.9]} 20... Nxh4 {[%clk
0:02:18.7]} 21. Rxf8+ {[%clk 0:02:40.1]} 21... Rxf8 {[%clk 0:02:14.9]} 22. Qe2
{[%clk 0:02:38.3]} 22... Qg5 {[%clk 0:02:10]} 23. Rd3 {[%clk 0:02:08.4]} 23...
Bg4 {[%clk 0:01:43]} 24. Qd2 {[%clk 0:02:04.1]} 24... Qf6 {[%clk 0:01:39.1]} 25.
Rg3 {[%clk 0:01:59.7]} 25... h5 {[%clk 0:01:04.9]} 26. Qe1 {[%clk 0:01:48.6]}
26... Nf5 {[%clk 0:00:40]} 27. Bxf5 {[%clk 0:01:42.7]} 27... gxf5 {[%clk
0:00:37.7]} 28. Re3 {[%clk 0:01:40.1]} 28... f4 {[%clk 0:00:36.3]} 29. Re5
{[%clk 0:01:40]} 29... f3 {[%clk 0:00:31.9]} 30. gxf3 {[%clk 0:01:30.7]} 30...
Bxf3 {[%clk 0:00:31.2]} 31. Nxf3 {[%clk 0:01:27.5]} 31... Qxf3 {[%clk
0:00:31.7]} 32. Rg5+ {[%clk 0:01:28.9]} 32... Kh7 {[%clk 0:00:27.3]} 33. Qb1+
{[%clk 0:01:23]} 33... Kh8 {[%clk 0:00:28]} 34. Qe1 {[%clk 0:01:23.2]} 34... Kh7
{[%clk 0:00:22.7]} 35. Rg3 {[%clk 0:01:24.1]} 35... Qxg3+ {[%clk 0:00:20.1]} 36.
Qxg3 {[%clk 0:01:24.5]} 36... Rg8 {[%clk 0:00:21.8]} 37. Kf2 {[%clk 0:01:25.6]}
37... Rxg3 {[%clk 0:00:21.9]} 38. Kxg3 {[%clk 0:01:27.5]} 38... Kg6 {[%clk
0:00:21.9]} 39. Kh4 {[%clk 0:01:29.4]} 39... Kh6 {[%clk 0:00:22]} 40. b3 {[%clk
0:01:28.6]} 40... Kg6 {[%clk 0:00:22.5]} 41. a4 {[%clk 0:01:30]} 41... Kh6
{[%clk 0:00:22.4]} 42. a5 {[%clk 0:01:31.4]} 42... a6 {[%clk 0:00:22.7]} 43. c4
{[%clk 0:01:29.9]} 43... dxc4 {[%clk 0:00:20]} 44. bxc4 {[%clk 0:01:31.8]} 44...
Kg6 {[%clk 0:00:20.9]} 45. c5 {[%clk 0:01:33.3]} 45... Kh6 {[%clk 0:00:22]} 0-1

[Event "*** Titled Tuesday Blitz"]
[Site "Chess.com"]
[Date "2020.02.04"]
[Round "7"]
[White "INLOVEWITHF"]
[Black "chessasuke"]
[Result "0-1"]
[WhiteElo "2364"]
[BlackElo "2671"]
[TimeControl "180+2"]
[EndTime "14:31:32 PST"]
[Termination "chessasuke won by resignation"]

1. d4 {[%clk 0:03:01.9]} 1... g6 {[%clk 0:02:59.3]} 2. e4 {[%clk 0:03:01.2]}
2... Bg7 {[%clk 0:03:00.2]} 3. Nc3 {[%clk 0:03:01.8]} 3... d6 {[%clk 0:03:01]}
4. f4 {[%clk 0:03:01.9]} 4... c6 {[%clk 0:03:00.7]} 5. Nf3 {[%clk 0:03:02]} 5...
d5 {[%clk 0:02:53.9]} 6. e5 {[%clk 0:03:00.5]} 6... h5 {[%clk 0:02:53.5]} 7. Bd3
{[%clk 0:02:53.1]} 7... Nh6 {[%clk 0:02:52.4]} 8. O-O {[%clk 0:02:52.6]} 8...
Bf5 {[%clk 0:02:39]} 9. Nh4 {[%clk 0:02:23.7]} 9... e6 {[%clk 0:02:16.4]} 10.
Nxf5 {[%clk 0:02:20.8]} 10... gxf5 {[%clk 0:02:17.5]} 11. Ne2 {[%clk 0:02:12]}
11... h4 {[%clk 0:02:15.8]} 12. a4 {[%clk 0:02:06.3]} 12... Nd7 {[%clk
0:02:12.9]} 13. a5 {[%clk 0:02:01.4]} 13... a6 {[%clk 0:02:13.3]} 14. c3 {[%clk
0:01:59.2]} 14... c5 {[%clk 0:02:13.1]} 15. Qa4 {[%clk 0:01:57.6]} 15... Bf8
{[%clk 0:02:10.5]} 16. h3 {[%clk 0:01:55.6]} 16... Rc8 {[%clk 0:02:07.3]} 17.
Be3 {[%clk 0:01:54.8]} 17... Be7 {[%clk 0:02:02.8]} 18. b4 {[%clk 0:01:54.2]}
18... c4 {[%clk 0:01:56.1]} 19. Bc2 {[%clk 0:01:51.7]} 19... Kf8 {[%clk
0:01:57.2]} 20. b5 {[%clk 0:01:42.7]} 20... Rg8 {[%clk 0:01:57.7]} 21. Bc1
{[%clk 0:01:38.7]} 21... Rg6 {[%clk 0:01:57.6]} 22. Ba3 {[%clk 0:01:39.3]} 22...
Kg7 {[%clk 0:01:58.2]} 23. Bxe7 {[%clk 0:01:39.1]} 23... Qxe7 {[%clk 0:02:00.1]}
24. Kh2 {[%clk 0:01:35.3]} 24... Rg8 {[%clk 0:02:00.4]} 25. bxa6 {[%clk
0:01:32.8]} 25... bxa6 {[%clk 0:02:01.1]} 26. Rab1 {[%clk 0:01:33.1]} 26... Kh8
{[%clk 0:01:59.2]} 27. Rg1 {[%clk 0:01:32.4]} 27... Nb8 {[%clk 0:01:49]} 28. Qb4
{[%clk 0:01:24.4]} 28... Qd8 {[%clk 0:01:47.6]} 29. Qb6 {[%clk 0:01:22.9]} 29...
Qf8 {[%clk 0:01:48.1]} 30. Qd6 {[%clk 0:01:05.1]} 30... Qg7 {[%clk 0:01:41.7]}
31. g4 {[%clk 0:00:48.8]} 31... Nxg4+ {[%clk 0:01:04]} 32. hxg4 {[%clk
0:00:33.8]} 32... Rxg4 {[%clk 0:01:05.9]} 33. Rxg4 {[%clk 0:00:14]} 33... Qxg4
{[%clk 0:01:07.8]} 0-1

[Event "*** Titled Tuesday Blitz"]
[Site "Chess.com"]
[Date "2020.02.04"]
[Round "7"]
[White "Philosopherrr"]
[Black "temus_galaktionov"]
[Result "0-1"]
[WhiteElo "2470"]
[BlackElo "2705"]
[TimeControl "180+2"]
[EndTime "14:31:34 PST"]
[Termination "temus_galaktionov won by resignation"]

1. e4 {[%clk 0:03:01.9]} 1... c6 {[%clk 0:03:00.9]} 2. d4 {[%clk 0:03:02.5]}
2... g6 {[%clk 0:03:02.8]} 3. Nc3 {[%clk 0:03:01.2]} 3... Bg7 {[%clk 0:03:02]}
4. Nf3 {[%clk 0:03:02]} 4... d6 {[%clk 0:03:02.2]} 5. Bc4 {[%clk 0:02:59.1]}
5... Nd7 {[%clk 0:02:59.9]} 6. a4 {[%clk 0:02:41.9]} 6... Ngf6 {[%clk
0:02:32.4]} 7. Qe2 {[%clk 0:02:29.7]} 7... e5 {[%clk 0:02:30.8]} 8. dxe5 {[%clk
0:02:28.3]} 8... dxe5 {[%clk 0:02:31.6]} 9. a5 {[%clk 0:02:27]} 9... O-O {[%clk
0:02:19.3]} 10. Be3 {[%clk 0:02:26.3]} 10... Qe7 {[%clk 0:02:19.1]} 11. O-O
{[%clk 0:02:21]} 11... Nc5 {[%clk 0:02:19.9]} 12. Ng5 {[%clk 0:02:11.6]} 12...
h6 {[%clk 0:02:02.3]} 13. b4 {[%clk 0:01:50]} 13... Ncd7 {[%clk 0:01:57.1]} 14.
Nf3 {[%clk 0:01:46]} 14... Qxb4 {[%clk 0:01:56.9]} 15. Bd2 {[%clk 0:01:31.7]}
15... Qe7 {[%clk 0:01:57.5]} 16. Rfb1 {[%clk 0:01:26.8]} 16... Rd8 {[%clk
0:01:51.5]} 17. Na4 {[%clk 0:01:25.1]} 17... b5 {[%clk 0:01:43.5]} 18. axb6
{[%clk 0:01:21.5]} 18... axb6 {[%clk 0:01:45.4]} 19. Bb4 {[%clk 0:01:19]} 19...
Qe8 {[%clk 0:01:37.9]} 20. Bb3 {[%clk 0:01:19.9]} 20... Ba6 {[%clk 0:01:32.6]}
21. Qe3 {[%clk 0:01:18.5]} 21... c5 {[%clk 0:01:30.7]} 22. Be1 {[%clk
0:01:12.3]} 22... c4 {[%clk 0:01:11.4]} 23. Ba2 {[%clk 0:01:09.9]} 23... b5
{[%clk 0:01:05.6]} 24. Nc3 {[%clk 0:01:09.3]} 24... Nf8 {[%clk 0:00:59.2]} 25.
h3 {[%clk 0:01:00.2]} 25... Rdb8 {[%clk 0:00:53.4]} 26. Nd5 {[%clk 0:00:50]}
26... Nxd5 {[%clk 0:00:52.1]} 27. exd5 {[%clk 0:00:51.2]} 27... Qd7 {[%clk
0:00:48.6]} 28. Bxc4 {[%clk 0:00:47.2]} 28... bxc4 {[%clk 0:00:45.5]} 29. Rxa6
{[%clk 0:00:45.9]} 29... Rxb1 {[%clk 0:00:43.3]} 30. Rxa8 {[%clk 0:00:46.4]}
30... Qxd5 {[%clk 0:00:44.2]} 31. Kh2 {[%clk 0:00:47.6]} 31... Qxa8 {[%clk
0:00:44.2]} 0-1

[Event "*** Titled Tuesday Blitz"]
[Site "Chess.com"]
[Date "2020.02.04"]
[Round "7"]
[White "Gogolev_Artemy"]
[Black "pawnwonder"]
[Result "1-0"]
[WhiteElo "2515"]
[BlackElo "2169"]
[TimeControl "180+2"]
[EndTime "14:31:36 PST"]
[Termination "Gogolev_Artemy won by resignation"]

1. d4 {[%clk 0:03:00.4]} 1... Nf6 {[%clk 0:02:59.1]} 2. c4 {[%clk 0:02:58]} 2...
g6 {[%clk 0:03:00.2]} 3. Nc3 {[%clk 0:02:56.6]} 3... Bg7 {[%clk 0:03:01.2]} 4.
Nf3 {[%clk 0:02:56.4]} 4... O-O {[%clk 0:03:01.3]} 5. e4 {[%clk 0:02:57.4]} 5...
d6 {[%clk 0:03:02.5]} 6. Be2 {[%clk 0:02:58.3]} 6... e5 {[%clk 0:03:02.8]} 7.
O-O {[%clk 0:02:59.2]} 7... Nc6 {[%clk 0:03:04.1]} 8. d5 {[%clk 0:02:59.8]} 8...
Ne7 {[%clk 0:03:05.1]} 9. b4 {[%clk 0:03:00.3]} 9... a5 {[%clk 0:03:05.4]} 10.
Ba3 {[%clk 0:03:01.4]} 10... axb4 {[%clk 0:03:06]} 11. Bxb4 {[%clk 0:03:03.3]}
11... Re8 {[%clk 0:03:05.6]} 12. c5 {[%clk 0:02:50.3]} 12... dxc5 {[%clk
0:03:02.6]} 13. Bxc5 {[%clk 0:02:52.2]} 13... c6 {[%clk 0:03:04.2]} 14. d6
{[%clk 0:02:46.7]} 14... Qa5 {[%clk 0:03:03.3]} 15. Rc1 {[%clk 0:01:45.5]} 15...
Bg4 {[%clk 0:02:46.4]} 16. Be3 {[%clk 0:01:06.7]} 16... Nc8 {[%clk 0:02:43.5]}
17. h3 {[%clk 0:00:54.2]} 17... Bxf3 {[%clk 0:02:37.4]} 18. Bxf3 {[%clk
0:00:51.9]} 18... Rd8 {[%clk 0:02:38.2]} 19. a4 {[%clk 0:00:52.5]} 19... Rxd6
{[%clk 0:02:36]} 20. Qb3 {[%clk 0:00:50.7]} 20... Rd7 {[%clk 0:02:19.7]} 21.
Rfd1 {[%clk 0:00:44.4]} 21... Qc7 {[%clk 0:02:05]} 22. Nb5 {[%clk 0:00:39.2]}
22... Rxd1+ {[%clk 0:01:59.3]} 23. Bxd1 {[%clk 0:00:34.1]} 23... Qd7 {[%clk
0:01:59.2]} 24. Nc3 {[%clk 0:00:32.5]} 24... Ne7 {[%clk 0:01:59.8]} 25. Be2
{[%clk 0:00:31.1]} 25... Ne8 {[%clk 0:01:42.6]} 26. Rd1 {[%clk 0:00:29.7]} 26...
Qc7 {[%clk 0:01:38.4]} 27. Bb6 {[%clk 0:00:30.5]} 27... Qc8 {[%clk 0:01:34]} 28.
Rd8 {[%clk 0:00:21.9]} 28... Qxd8 {[%clk 0:01:28.9]} 29. Bxd8 {[%clk 0:00:23.8]}
29... Rxd8 {[%clk 0:01:29.9]} 30. Qxb7 {[%clk 0:00:25.2]} 30... Bf6 {[%clk
0:01:31.3]} 31. a5 {[%clk 0:00:25.3]} 31... Nd6 {[%clk 0:01:32.1]} 32. Qc7
{[%clk 0:00:23.1]} 32... Nec8 {[%clk 0:01:19.2]} 33. a6 {[%clk 0:00:22.8]} 33...
Re8 {[%clk 0:01:10.1]} 34. a7 {[%clk 0:00:21]} 1-0